bitfinex/quotes_SOLUSD_20251018
["timestamp","ask_amount","ask_price","bid_price","bid_amount"]
[1760826903810,3.33983636,187.97,187.96,0.2]
[1760826904218,4.04983636,187.97,187.96,0.2]
[1760826905024,26.92983636,187.97,187.96,0.2]
[1760826905219,37.80631157,187.97,187.96,0.2]
[1760826905521,41.38362286,187.97,187.96,0.2]
[1760826905720,29.30127058,187.97,187.96,0.2]
[1760826905925,26.92983636,187.97,187.96,0.2]
[1760826909513,32.24983423,187.97,187.96,0.2]
[1760826909711,43.12630944,187.97,187.96,0.2]
[1760826909914,45.26015489,187.97,187.96,0.2]
[1760826910113,48.83598858,187.97,187.96,0.2]
[1760826911226,43.51599071,187.97,187.96,0.2]
[1760826913038,48.83598858,187.97,187.96,0.2]
[1760826913533,48.7892488,187.97,187.96,0.2]
[1760826917117,48.7892488,187.97,187.96,0.12707538]
[1760826917837,46.65540335,187.97,187.96,0.12707538]
[1760826918136,29.79567005,187.97,187.96,0.12707538]
[1760826918542,3.57583369,187.97,187.96,0.80707538]
[1760826918722,6.91567005,187.99,187.96,0.80707538]
[1760826919037,3.33983636,187.99,187.96,0.80707538]
[1760826919214,3.33983636,187.99,187.97,0.68]
[1760826919418,26.21983636,187.99,187.98,0.68]
[1760826919620,29.79567005,187.99,187.98,0.68]
[1760826920413,29.79567005,187.99,187.96,0.80707538]
[1760826920618,26.21983636,187.99,187.97,0.68]
[1760826921040,26.21983636,187.99,187.98,0.68]
[1760826921241,26.21983636,187.99,187.96,0.12707538]
[1760826921533,3.33983636,187.97,187.96,0.12707538]
[1760826922130,26.21983636,187.97,187.96,0.12707538]
[1760826926734,26.21983636,187.97,187.96,0.80707538]
[1760826928727,26.21983636,187.97,187.96,0.12707538]
[1760826929046,7.5899299,187.97,187.96,0.12707538]
[1760826929235,4.00983636,187.97,187.96,0.12707538]
[1760826930446,3.33983636,187.97,187.96,0.12707538]
[1760826931348,3.33983636,187.97,187.96,0.80707538]
[1760826931739,3.33983636,187.97,187.96,0.12707538]
[1760826934469,6.92180591,187.97,187.96,0.12707538]
[1760826934751,12.91180378,187.97,187.96,0.12707538]
[1760826937054,12.24180378,187.97,187.96,0.12707538]
[1760826938660,12.91180378,187.97,187.96,0.12707538]
[1760826944362,18.46828112,187.97,187.96,0.12707538]
[1760826944560,23.78827899,187.97,187.96,0.12707538]
[1760826945157,23.79460027,187.97,187.96,0.12707538]
[1760826946165,28.2799638,187.97,187.96,0.12707538]
[1760826952164,30.41403694,187.97,187.96,0.12707538]
[1760826952562,28.2799638,187.97,187.96,0.12707538]
[1760826955355,24.27012744,187.97,187.96,0.12707538]
[1760826955561,23.83460027,187.97,187.96,0.12707538]
[1760826955764,28.3199638,187.97,187.96,0.12707538]
[1760826957972,30.45403694,187.97,187.96,0.12707538]
[1760826959077,28.3199638,187.97,187.96,0.12707538]
[1760826959873,30.45403694,187.97,187.96,0.12707538]
[1760826960171,27.6099638,187.97,187.96,0.12707538]
[1760826960568,27.6099638,187.97,187.96,0.78707538]
[1760826962079,17.8046024,187.97,187.96,0.78707538]
[1760826963864,6.92812719,187.97,187.96,0.78707538]
[1760826964069,3.58829083,187.97,187.96,0.78707538]
[1760826964266,6.92812719,187.97,187.96,0.78707538]
[1760826964500,17.8046024,187.97,187.96,0.12707538]
[1760826964660,23.12460027,187.97,187.96,0.12707538]
[1760826968866,23.12460027,187.97,187.96,0.83707538]
[1760826972788,6.92812719,187.97,187.96,0.83707538]
[1760826974970,3.58829083,187.97,187.96,0.83707538]
[1760826981495,3.58829083,187.97,187.96,6.15735629]
[1760826982373,3.58829083,188.0,187.96,9.49719265]
[1760826982576,3.58829083,187.99,187.97,0.71]
[1760826982781,3.58829083,187.98,187.97,0.71]
[1760826983394,22.88,188.03,187.97,4.04983636]
[1760826983395,3.58829083,188.01,187.97,4.04983636]
[1760826983698,3.33983636,188.03,187.98,4.04983636]
[1760826983699,3.58829083,188.0,187.98,4.04983636]
[1760826983887,3.58829083,188.02,187.99,0.71]
[1760826984286,3.58829083,188.02,187.99,6.02936748]
[1760826984471,3.33983636,188.03,188.0,0.71]
[1760826984677,102.1,188.02,188.0,0.71]
[1760826985476,105.43983636,188.02,187.96,0.12707538]
[1760826985678,3.33983636,188.0,187.97,0.71]
[1760826985877,6.92383821,188.01,187.97,0.71]
[1760826988585,6.92383821,188.01,187.96,5.44733534]
[1760826988586,3.33983636,187.99,187.96,0.83707538]
[1760826988787,3.33983636,187.98,187.96,0.83707538]
[1760826989384,3.33983636,187.98,187.96,0.12707538]
[1760826989778,3.33983636,187.98,187.96,0.83707538]
[1760826989983,105.43983636,187.99,187.97,0.71]
[1760826990404,102.1,187.99,187.97,0.71]
[1760826990912,106.15983636,187.99,187.96,0.12707538]
[1760826991114,105.43983636,187.99,187.96,0.83707538]
[1760826995393,102.1,187.98,187.96,0.83707538]
[1760826996690,102.82,187.98,187.96,0.12707538]
[1760826997588,102.1,187.98,187.96,0.83707538]
[1760826997789,102.82,187.98,187.96,0.12707538]
[1760826998501,4.05983636,187.97,187.96,0.12707538]
[1760826999012,7.64311235,187.97,187.96,0.12707538]
[1760827000284,7.39967272,187.97,187.96,0.12707538]
[1760827000487,12.71967059,187.97,187.96,0.12707538]
[1760827000984,23.5961458,187.97,187.96,0.12707538]
[1760827001304,27.18023612,187.97,187.96,0.12707538]
[1760827003699,31.38850679,187.97,187.96,0.12707538]
[1760827007214,27.18023612,187.97,187.96,0.12707538]
[1760827008108,31.50032499,187.97,187.96,0.12707538]
[1760827008520,27.18023612,187.97,187.96,0.12707538]
[1760827009824,31.46868538,187.97,187.96,0.12707538]
[1760827018029,26.46023612,187.97,187.96,0.12707538]
[1760827018332,27.14023612,187.97,187.96,0.12707538]
[1760827019034,141.0499638,187.95,187.94,0.65]
[1760827019238,147.97389048,187.95,187.94,0.65]
[1760827019735,150.10807748,187.95,187.94,0.65]
[1760827020735,150.10684336,187.95,187.94,0.65]
[1760827021842,10.87647521,187.94,187.92,0.85]
[1760827022025,105.31276098,187.93,187.92,0.85]
[1760827022329,105.31276098,187.93,187.92,0.2]
[1760827022528,108.65259734,187.93,187.92,0.2]
[1760827022830,108.65259734,187.93,187.92,0.85]
[1760827023031,113.97372754,187.93,187.92,0.2]
[1760827024334,23.55727813,187.93,187.92,0.2]
[1760827024637,30.47911338,187.93,187.92,0.2]
[1760827025940,33.75647521,187.9,187.89,0.2]
[1760827026145,37.3384741,187.9,187.89,0.2]
[1760827026313,40.67831046,187.9,187.89,0.2]
[1760827026519,42.81306696,187.9,187.89,0.85]
[1760827027019,48.13504673,187.9,187.89,0.2]
[1760827027423,48.79504673,187.9,187.89,0.2]
[1760827030825,22.88,187.86,187.85,0.66]
[1760827031150,26.21983636,187.86,187.83,0.2]
[1760827031442,102.1,187.85,187.83,0.2]
[1760827031622,102.1,187.85,187.84,0.66]
[1760827032054,104.23498438,187.85,187.84,0.66]
[1760827033040,104.23498438,187.85,187.84,0.16]
[1760827033546,107.57482074,187.85,187.84,0.16]
[1760827036826,5.47482074,187.85,187.84,0.16]
[1760827043662,5.47482074,187.85,187.83,0.9]
[1760827043856,25.01498438,187.85,187.84,0.7]
[1760827044042,3.33983636,187.86,187.84,0.7]
[1760827044363,3.33983636,187.85,187.84,0.7]
[1760827044565,26.21983636,187.86,187.85,0.7]
[1760827045044,26.21983636,187.86,187.83,0.9]
[1760827045440,3.33983636,187.86,187.84,0.7]
[1760827046245,3.33983636,187.88,187.84,0.7]
[1760827046866,26.21983636,187.89,187.84,6.02366311]
[1760827047057,26.21983636,187.89,187.85,0.7]
[1760827047747,3.33983636,187.88,187.85,0.7]
[1760827048242,3.33983636,187.88,187.83,3.53983636]
[1760827048243,3.33983636,187.88,187.86,0.7]
[1760827048666,102.1,187.87,187.86,0.7]
[1760827052250,102.1,187.87,187.86,6.02311295]
[1760827052676,102.1,187.87,187.86,0.7]
[1760827054195,102.1,187.87,187.83,5.52392765]
[1760827054379,102.81,187.87,187.84,0.7]
[1760827054567,106.14983636,187.87,187.84,0.7]
[1760827054970,105.43983636,187.87,187.85,0.7]
[1760827055691,102.1,187.87,187.85,0.7]
[1760827057585,102.1,187.87,187.84,5.32346804]
[1760827057790,102.1,187.87,187.85,0.7]
[1760827063500,102.1,187.87,187.84,5.32346804]
[1760827063706,102.1,187.87,187.86,0.68]
[1760827064087,102.1,187.87,187.84,6.00346804]
[1760827064389,102.1,187.87,187.85,0.68]
[1760827068993,102.1,187.87,187.84,6.00346804]
[1760827069193,102.1,187.87,187.85,0.68]
[1760827070908,102.1,187.87,187.84,8.6633044]
[1760827071110,102.1,187.87,187.85,6.0031622]
[1760827071299,102.1,187.87,187.86,0.68]
[1760827072310,102.1,187.87,187.85,5.3231622]
[1760827072509,102.1,187.87,187.85,6.0031622]
[1760827073395,102.1,187.87,187.85,5.3231622]
[1760827073598,102.1,187.87,187.85,6.0031622]
[1760827074416,102.1,187.87,187.85,0.68]
[1760827074810,0.69,187.86,187.83,0.2]
[1760827075113,4.02983636,187.86,187.83,5.52392788]
[1760827075310,0.69,187.85,187.83,5.52392788]
[1760827077311,102.79,187.87,187.83,6.20392788]
[1760827077613,0.69,187.86,187.83,6.20392788]
[1760827077993,0.69,187.86,187.83,5.52392788]
[1760827079009,102.1,187.87,187.83,5.52392788]
[1760827079200,0.69,187.85,187.83,5.52392788]
[1760827079917,102.79,187.87,187.83,6.20392788]
[1760827080119,0.69,187.86,187.83,6.20392788]
[1760827080514,102.1,187.87,187.84,0.68]
[1760827080812,102.1,187.87,187.85,0.68]
[1760827081016,102.1,187.87,187.85,4.01983636]
[1760827081400,102.1,187.87,187.84,0.68]
[1760827081721,102.1,187.87,187.85,0.68]
[1760827083718,102.1,187.87,187.85,5.32339632]
[1760827085029,102.1,187.87,187.85,6.00339632]
[1760827086527,102.1,187.87,187.85,9.34323268]
[1760827089225,102.1,187.87,187.86,3.33983636]
[1760827090232,102.1,187.87,187.85,9.34323268]
[1760827090525,102.76,187.87,187.85,8.66323268]
[1760827090729,102.1,187.87,187.85,8.66323268]
[1760827091115,102.1,187.87,187.85,9.38323268]
[1760827094604,102.81,187.87,187.85,8.66323268]
[1760827096331,102.81,187.87,187.85,5.32339632]
[1760827097653,4.04983636,187.86,187.83,0.2]
[1760827097942,3.33983636,187.85,187.83,0.2]
[1760827098431,0.71,187.84,187.83,0.2]
[1760827098633,4.04983636,187.84,187.83,0.2]
[1760827098841,7.6426415,187.84,187.83,0.2]
[1760827103132,4.04983636,187.84,187.83,0.2]
[1760827103434,7.63904841,187.84,187.83,0.2]
[1760827106523,4.04983636,187.84,187.83,0.2]
[1760827107229,7.63904841,187.84,187.83,0.2]
[1760827107428,4.04983636,187.84,187.83,0.2]
[1760827108014,7.63904841,187.84,187.83,0.2]
[1760827108220,4.04983636,187.84,187.83,0.2]
[1760827110836,3.33983636,187.86,187.83,0.2]
[1760827111043,3.58921205,187.85,187.83,0.87]
[1760827111444,4.29921205,187.87,187.83,0.2]
[1760827111654,7.63904841,187.87,187.83,0.87]
[1760827111950,3.58921205,187.87,187.84,0.67]
[1760827112144,4.04983636,187.89,187.85,0.67]
[1760827112351,0.71,187.88,187.85,5.99325648]
[1760827112745,3.58921205,187.89,187.86,0.67]
[1760827113051,6.92904841,187.9,187.86,0.67]
[1760827113243,6.92904841,187.9,187.87,0.67]
[1760827113244,7.63904841,187.9,187.87,0.67]
[1760827113453,4.04983636,187.9,187.87,0.67]
[1760827114168,7.63904841,187.9,187.87,0.67]
[1760827114355,4.04983636,187.9,187.87,0.67]
[1760827114859,4.04983636,187.9,187.86,5.32292313]
[1760827115070,7.63904841,187.9,187.86,5.99292313]
[1760827115255,4.04983636,187.9,187.86,5.99292313]
[1760827115953,7.63904841,187.9,187.86,5.99292313]
[1760827116155,4.04983636,187.9,187.86,5.99292313]
[1760827116760,102.1,187.88,187.86,5.99292313]
[1760827117358,102.1,187.88,187.87,0.67]
[1760827118764,102.1,187.88,187.87,5.32282961]
[1760827122268,102.1,187.88,187.87,5.99282961]
[1760827123143,102.1,187.88,187.87,9.33266597]
[1760827132258,102.1,187.88,187.87,8.66266597]
[1760827132571,102.1,187.88,187.87,9.33266597]
[1760827133576,102.1,187.88,187.87,8.66266597]
[1760827133900,102.1,187.88,187.87,9.33266597]
[1760827137488,102.1,187.88,187.87,8.66266597]
[1760827139170,102.1,187.88,187.87,9.33266597]
[1760827140689,102.1,187.88,187.87,8.66266597]
[1760827140879,102.1,187.88,187.87,9.33266597]
[1760827141375,102.1,187.88,187.87,8.66266597]
[1760827142102,102.1,187.88,187.87,9.33266597]
[1760827142990,102.1,187.88,187.87,8.66266597]
[1760827144396,102.81,187.88,187.87,8.66266597]
[1760827144714,102.1,187.88,187.87,8.66266597]
[1760827149691,102.1,187.88,187.87,9.32266597]
[1760827149898,102.1,187.88,187.87,8.66266597]
[1760827152396,102.77,187.88,187.87,8.66266597]
[1760827155785,102.77,187.88,187.87,3.33983636]
[1760827155988,102.77,187.88,187.83,16.84821715]
[1760827155989,102.77,187.88,187.85,5.32316349]
[1760827156212,0.65,187.87,187.85,5.32316349]
[1760827156508,0.65,187.86,187.83,5.5237188]
[1760827156707,0.65,187.85,187.83,0.2]
[1760827157012,3.98983636,187.85,187.83,0.2]
[1760827157506,0.65,187.85,187.83,0.2]
[1760827158112,0.65,187.85,187.83,5.52385541]
[1760827158315,0.65,187.84,187.83,5.52385541]
[1760827159302,0.65,187.84,187.83,0.2]
[1760827160301,3.98983636,187.84,187.83,0.2]
[1760827162682,102.75,187.84,187.83,0.2]
[1760827162920,14.86631157,187.84,187.83,0.2]
[1760827163210,0.65,187.84,187.83,0.2]
[1760827165404,3.98983636,187.84,187.83,0.2]
[1760827165612,0.65,187.84,187.83,0.2]
[1760827169298,3.98983636,187.84,187.83,0.2]
[1760827170614,43.06999129,187.84,187.83,0.2]
[1760827170814,46.64889634,187.84,187.83,0.2]
[1760827170993,48.78422264,187.84,187.83,0.2]
[1760827173117,25.90422264,187.84,187.83,0.2]
[1760827174500,29.244059,187.84,187.83,0.2]
[1760827174906,17.55614793,187.83,187.82,0.2]
[1760827175117,123.23505298,187.83,187.82,0.2]
[1760827175320,123.88505298,187.83,187.82,0.2]
[1760827175616,126.02083534,187.83,187.82,0.2]
[1760827175800,131.34479849,187.83,187.82,0.2]
[1760827175994,10.87647521,187.79,187.78,0.2]
[1760827176190,14.21631157,187.79,187.78,0.2]
[1760827176416,14.86631157,187.79,187.78,0.2]
[1760827176611,17.0024361,187.79,187.78,0.2]
[1760827177209,22.32753328,187.79,187.78,0.2]
[1760827177410,21.68753328,187.79,187.78,0.2]
[1760827178500,25.25732924,187.79,187.78,0.2]
[1760827178701,29.61635559,187.79,187.78,0.2]
[1760827179097,26.27651923,187.79,187.78,0.2]
[1760827179303,25.25732924,187.79,187.78,0.2]
[1760827180310,21.68753328,187.79,187.78,0.2]
[1760827181121,16.3624361,187.79,187.78,0.2]
[1760827181302,6.12596089,187.79,187.78,0.2]
[1760827182923,3.33983636,187.81,187.78,0.89]
[1760827183103,3.33983636,187.8,187.78,0.89]
[1760827183303,3.33983636,187.79,187.78,0.2]
[1760827183902,26.21983636,187.8,187.78,0.9]
[1760827185310,26.21983636,187.8,187.78,0.2]
[1760827185513,26.90983636,187.8,187.78,0.2]
[1760827186407,3.33983636,187.79,187.78,0.2]
[1760827186607,26.21983636,187.79,187.78,0.2]
[1760827187726,22.88,187.79,187.78,0.9]
[1760827188230,10.87647521,187.82,187.78,0.9]
[1760827188424,3.33983636,187.8,187.78,0.9]
[1760827189419,3.33983636,187.8,187.78,0.2]
[1760827189620,3.33983636,187.79,187.78,0.2]
[1760827199246,3.33983636,187.8,187.78,0.9]
[1760827199836,3.33983636,187.8,187.78,0.2]
[1760827200032,4.02983636,187.8,187.78,0.2]
[1760827200435,3.33983636,187.81,187.79,0.7]
[1760827200755,22.88,187.81,187.79,0.7]
[1760827200955,26.21983636,187.81,187.79,0.7]
[1760827201426,0.69,187.8,187.78,0.2]
[1760827201632,4.02983636,187.8,187.78,0.2]
[1760827203642,3.33983636,187.79,187.78,0.2]
[1760827203953,4.02983636,187.79,187.78,0.2]
[1760827204327,3.33983636,187.79,187.78,0.2]
[1760827206052,26.90983636,187.8,187.78,0.2]
[1760827207650,3.33983636,187.79,187.78,0.2]
[1760827211852,4.01983636,187.79,187.78,0.2]
[1760827213260,7.60977899,187.79,187.78,0.2]
[1760827225968,6.92977899,187.79,187.78,0.89]
[1760827226448,3.58994263,187.79,187.78,0.89]
[1760827227055,6.92977899,187.79,187.78,0.2]
[1760827227469,7.64977899,187.79,187.78,0.2]
[1760827228458,6.92977899,187.79,187.78,0.2]
[1760827228664,3.58994263,187.79,187.78,0.2]
[1760827230769,7.64977899,187.79,187.78,0.2]
[1760827231163,6.92977899,187.79,187.78,0.2]
[1760827232069,3.58994263,187.79,187.78,0.2]
[1760827232572,3.58994263,187.79,187.78,0.89]
[1760827232874,3.58994263,187.79,187.78,0.2]
[1760827236975,4.30994263,187.79,187.78,0.2]
[1760827237359,7.64977899,187.79,187.78,0.2]
[1760827237560,6.92977899,187.79,187.78,0.2]
[1760827238776,7.64977899,187.79,187.78,0.2]
[1760827256604,23.85135138,187.79,187.78,0.2]
[1760827256902,28.33786644,187.79,187.78,0.2]
[1760827257580,30.47399097,187.79,187.78,0.2]
[1760827257980,25.98747591,187.79,187.77,0.2]
[1760827258193,34.30650192,187.78,187.77,0.2]
[1760827258489,22.30297713,187.78,187.77,0.2]
[1760827258798,25.12932984,187.78,187.77,0.2]
[1760827259393,30.4547106,187.78,187.77,0.2]
[1760827259897,25.95798767,187.78,187.77,0.2]
[1760827260590,33.75647521,187.75,187.74,0.2]
[1760827260781,40.6862542,187.75,187.74,0.2]
[1760827261088,41.3762542,187.75,187.74,0.2]
[1760827266376,46.70248589,187.75,187.74,0.2]
[1760827266577,54.53747749,187.75,187.74,0.2]
[1760827266781,42.82294926,187.75,187.74,0.2]
[1760827267012,41.3562542,187.75,187.74,0.2]
[1760827267381,46.68248589,187.75,187.74,0.2]
[1760827269603,54.51747749,187.75,187.74,0.2]
[1760827269900,56.65417255,187.75,187.74,0.2]
[1760827271300,52.15901731,187.75,187.74,0.2]
[1760827272911,46.01248589,187.75,187.74,0.2]
[1760827273612,46.70248589,187.75,187.74,0.2]
[1760827274308,43.36264953,187.75,187.74,0.2]
[1760827274515,46.70248589,187.75,187.74,0.2]
[1760827275415,48.83906682,187.75,187.74,0.2]
[1760827276002,43.36264953,187.75,187.74,0.2]
[1760827276213,46.70248589,187.75,187.74,0.2]
[1760827278805,48.83906682,187.75,187.74,0.2]
[1760827278999,46.70248589,187.75,187.74,0.2]
[1760827279199,48.83906682,187.75,187.74,0.2]
[1760827279898,46.01248589,187.75,187.74,0.2]
[1760827280716,46.70248589,187.75,187.74,0.2]
[1760827281520,46.01248589,187.75,187.74,0.2]
[1760827281722,46.01248589,187.75,187.74,0.85]
[1760827282101,46.01248589,187.75,187.74,0.2]
[1760827285134,46.70248589,187.75,187.74,0.2]
[1760827286219,52.17890318,187.75,187.74,0.2]
[1760827288217,112.77647521,187.73,187.72,0.2]
[1760827288525,119.7062542,187.73,187.72,0.2]
[1760827292531,116.36641784,187.73,187.72,0.2]
[1760827292831,119.7062542,187.73,187.72,0.2]
[1760827294126,17.8062542,187.73,187.72,0.2]
[1760827295226,17.8062542,187.73,187.72,0.85]
[1760827295413,6.92977899,187.73,187.72,0.85]
[1760827300407,6.92977899,187.73,187.72,0.2]
[1760827301035,6.92977899,187.73,187.72,0.85]
[1760827303628,29.81565559,187.73,187.72,0.85]
[1760827304035,29.81565559,187.73,187.72,0.2]
[1760827313827,34.31042963,187.73,187.72,0.2]
[1760827318842,29.81565559,187.73,187.72,0.2]
[1760827319940,26.47581923,187.73,187.72,0.86]
[1760827321751,22.88,187.73,187.72,0.86]
[1760827322134,26.47922765,187.73,187.72,0.86]
[1760827322334,22.88,187.73,187.72,0.86]
[1760827323754,26.47875,187.73,187.72,0.86]
[1760827324352,3.59875,187.73,187.72,0.86]
[1760827327856,6.93858636,187.73,187.72,0.2]
[1760827328061,7.61858636,187.73,187.72,0.2]
[1760827328441,6.93858636,187.73,187.72,0.2]
[1760827329856,7.61858636,187.73,187.72,0.2]
[1760827330369,12.94538548,187.73,187.72,0.2]
[1760827330666,28.32029819,187.73,187.72,0.2]
[1760827330849,30.45699325,187.73,187.72,0.2]
[1760827331456,25.95855575,187.73,187.7,0.2]
[1760827331639,3.33983636,187.71,187.7,0.2]
[1760827331838,6.93858636,187.71,187.7,0.2]
[1760827332058,7.61858636,187.71,187.7,0.2]
[1760827335698,28.32024779,187.71,187.7,0.2]
[1760827335990,30.45728532,187.71,187.7,0.2]
[1760827338276,17.81506157,187.71,187.7,0.2]
[1760827339066,3.59875,187.71,187.7,0.89]
[1760827344394,3.59875,187.71,187.7,0.2]
[1760827344775,6.93858636,187.71,187.7,0.2]
[1760827349597,3.59875,187.71,187.7,0.89]
[1760827350092,3.59875,187.71,187.7,0.2]
[1760827359692,7.61858636,187.71,187.7,0.2]
[1760827360801,3.59875,187.71,187.7,0.2]
[1760827361403,3.5943895,187.71,187.7,0.89]
[1760827361703,3.5943895,187.71,187.7,0.2]
[1760827362607,3.5943895,187.71,187.7,0.89]
[1760827366498,3.5943895,187.71,187.7,0.2]
[1760827370999,7.64422586,187.71,187.7,0.2]
[1760827372121,6.93422586,187.71,187.7,0.2]
[1760827372815,3.5943895,187.71,187.7,0.2]
[1760827374513,4.3043895,187.71,187.7,0.2]
[1760827375833,7.64422586,187.71,187.7,0.2]
[1760827376707,4.3043895,187.71,187.7,0.2]
[1760827376912,3.5943895,187.71,187.7,0.2]
[1760827377112,3.5943895,187.71,187.7,0.88]
[1760827379307,3.5943895,187.71,187.7,6.2076505]
[1760827379512,0.71,187.76,187.7,6.2076505]
[1760827379731,6.93531396,187.75,187.71,0.68]
[1760827379921,3.5954776,187.74,187.71,0.68]
[1760827380119,3.5954776,187.73,187.7,5.5276505]
[1760827380325,4.04983636,187.75,187.7,5.5276505]
[1760827380326,3.5954776,187.72,187.71,0.68]
[1760827381228,3.59597503,187.72,187.71,0.68]
[1760827384325,3.59597503,187.72,187.71,9.34720304]
[1760827384538,102.1,187.74,187.71,9.34720304]
[1760827384830,102.1,187.74,187.72,4.01983636]
[1760827385128,102.1,187.74,187.73,0.68]
[1760827386332,102.1,187.74,187.73,6.00679912]
[1760827387710,102.1,187.74,187.73,9.34663548]
[1760827388709,102.1,187.74,187.73,6.00679912]
[1760827391708,102.1,187.74,187.73,5.32679912]
[1760827393920,102.1,187.74,187.73,6.02679912]
[1760827397035,102.1,187.74,187.73,5.32679912]
[1760827402545,102.79,187.74,187.71,21.98561974]
[1760827402747,0.69,187.73,187.71,18.64578338]
[1760827403052,102.1,187.74,187.71,5.32736668]
[1760827403053,0.69,187.72,187.71,5.32736668]
[1760827403430,0.69,187.72,187.7,16.21922306]
[1760827403655,0.69,187.71,187.7,0.2]
[1760827405726,0.69,187.71,187.7,5.5276505]
[1760827406536,102.1,187.74,187.7,9.56748686]
[1760827406732,102.1,187.74,187.72,3.33983636]
[1760827406932,102.1,187.74,187.72,4.03983636]
[1760827408436,102.1,187.74,187.72,8.66669065]
[1760827408828,102.79,187.74,187.72,8.66669065]
[1760827414952,102.1,187.74,187.72,8.66669065]
[1760827415149,102.1,187.74,187.72,9.36669065]
[1760827415455,102.1,187.74,187.72,25.38505837]
[1760827416850,102.79,187.74,187.72,24.68505837]
[1760827417343,102.79,187.74,187.72,8.66669065]
[1760827419348,102.79,187.74,187.72,9.36669065]
[1760827419549,102.79,187.74,187.72,8.66669065]
[1760827421670,102.79,187.74,187.72,24.68505837]
[1760827422257,102.79,187.74,187.73,3.33983636]
[1760827422955,102.1,187.74,187.73,8.66663548]
[1760827423164,102.1,187.74,187.73,9.36663548]
[1760827423744,102.1,187.74,187.73,8.66663548]
[1760827424067,102.1,187.74,187.73,9.34663548]
[1760827424254,102.1,187.74,187.73,8.66663548]
[1760827429972,102.78,187.74,187.73,8.66663548]
[1760827430879,102.1,187.74,187.73,8.66663548]
[1760827432260,102.78,187.74,187.73,8.66663548]
[1760827433574,102.78,187.74,187.73,5.32679912]
[1760827433779,102.78,187.74,187.73,8.66663548]
[1760827438183,102.78,187.74,187.72,3.33983636]
[1760827438381,0.68,187.73,187.72,3.33983636]
[1760827438687,0.68,187.73,187.72,19.35820408]
[1760827439182,0.68,187.73,187.72,24.68528696]
[1760827440458,102.1,187.74,187.72,24.68528696]
[1760827440780,102.78,187.74,187.72,24.68528696]
[1760827441568,102.1,187.74,187.73,3.33983636]
[1760827441770,102.78,187.74,187.73,3.33983636]
[1760827442983,102.78,187.74,187.73,8.66663548]
[1760827443572,102.78,187.74,187.73,5.32679912]
[1760827444384,102.1,187.74,187.73,5.32679912]
[1760827444886,102.1,187.74,187.73,8.66663548]
[1760827445059,102.78,187.74,187.73,8.66663548]
[1760827447078,102.1,187.74,187.73,8.66663548]
[1760827448278,102.1,187.74,187.73,25.3450032]
[1760827450585,102.1,187.74,187.73,24.6850032]
[1760827450880,102.78,187.74,187.73,5.32679912]
[1760827451083,109.71508767,187.74,187.72,16.01836772]
[1760827451286,0.68,187.73,187.7,0.2]
[1760827452166,0.68,187.73,187.7,5.52757656]
[1760827452368,105.43983636,187.74,187.7,5.52757656]
[1760827452590,0.68,187.73,187.7,5.52757656]
[1760827452768,105.43983636,187.74,187.7,5.52757656]
[1760827452973,102.78,187.74,187.71,0.66]
[1760827453181,0.68,187.73,187.7,8.86741292]
[1760827453584,0.68,187.73,187.7,9.55741292]
[1760827454278,0.68,187.73,187.71,8.66696137]
[1760827455397,102.1,187.74,187.72,8.66690054]
[1760827455696,102.81,187.74,187.72,8.66690054]
[1760827459303,102.81,187.74,187.73,3.33983636]
[1760827459976,102.1,187.74,187.73,8.66663548]
[1760827460776,102.81,187.74,187.73,5.32679912]
[1760827461806,102.81,187.74,187.72,5.3270109]
[1760827462010,0.71,187.73,187.72,5.3270109]